[Event "Early-Titled-Tuesday-Blitz-October-10-2023"]
[Site "Chess.com"]
[Date "2023.10.10"]
[Round "8"]
[White "Duhless"]
[Black "Druid24"]
[Result "1-0"]
[WhiteElo "2935"]
[BlackElo "2722"]
[TimeControl "180+1"]
[EndTime "9:27:30 PDT"]
[Termination "Duhless won on time"]

1. g4 {[%clk 0:03:00.9]} 1... d5 {[%clk 0:02:58.3]} 2. Bg2 {[%clk 0:03:00.5]}
2... Bxg4 {[%clk 0:02:58.8]} 3. c4 {[%clk 0:03:00.3]} 3... c6 {[%clk 0:02:53.6]}
4. cxd5 {[%clk 0:02:59.5]} 4... cxd5 {[%clk 0:02:43.4]} 5. Qb3 {[%clk
0:02:59.2]} 5... Nf6 {[%clk 0:02:29.1]} 6. Nc3 {[%clk 0:02:58.6]} 6... e6 {[%clk
0:02:20.5]} 7. Qxb7 {[%clk 0:02:56.9]} 7... Nbd7 {[%clk 0:02:21.1]} 8. d4 {[%clk
0:02:56.8]} 8... Be7 {[%clk 0:02:12.1]} 9. Bf4 {[%clk 0:02:56.2]} 9... O-O
{[%clk 0:02:10.5]} 10. Nf3 {[%clk 0:02:54.8]} 10... Qb6 {[%clk 0:02:05.3]} 11.
Qxb6 {[%clk 0:02:53.2]} 11... Nxb6 {[%clk 0:02:03.7]} 12. Ne5 {[%clk 0:02:49.8]}
12... Bf5 {[%clk 0:02:02.3]} 13. Nc6 {[%clk 0:02:46.2]} 13... Rfe8 {[%clk
0:01:58.8]} 14. Nb5 {[%clk 0:02:24.8]} 14... Nh5 {[%clk 0:01:25]} 15. Be5 {[%clk
0:01:35.8]} 15... f6 {[%clk 0:01:22.2]} 16. Bd6 {[%clk 0:01:16.8]} 16... Bxd6
{[%clk 0:00:50.1]} 17. Nxd6 {[%clk 0:01:17.7]} 17... Nf4 {[%clk 0:00:36.2]} 18.
Bf3 {[%clk 0:01:05.7]} 18... Rf8 {[%clk 0:00:29.6]} 19. b3 {[%clk 0:01:03.5]}
19... Bg6 {[%clk 0:00:24.1]} 20. h4 {[%clk 0:00:57.7]} 20... Nc8 {[%clk
0:00:24.1]} 21. Nxc8 {[%clk 0:00:54.4]} 21... Raxc8 {[%clk 0:00:23.5]} 22. Ne7+
{[%clk 0:00:54.6]} 22... Kf7 {[%clk 0:00:24.2]} 23. Nxc8 {[%clk 0:00:54.2]}
23... Rxc8 {[%clk 0:00:25.1]} 24. e3 {[%clk 0:00:34.7]} 24... Nd3+ {[%clk
0:00:21.7]} 25. Kd2 {[%clk 0:00:34.7]} 25... Nxf2 {[%clk 0:00:21.4]} 26. Rhc1
{[%clk 0:00:35.2]} 26... Re8 {[%clk 0:00:14.9]} 27. Rc7+ {[%clk 0:00:33.3]}
27... Re7 {[%clk 0:00:15.5]} 28. Rac1 {[%clk 0:00:32.9]} 28... Be4 {[%clk
0:00:12.9]} 29. Be2 {[%clk 0:00:30.3]} 29... g5 {[%clk 0:00:11.7]} 30. hxg5
{[%clk 0:00:15]} 30... fxg5 {[%clk 0:00:12.2]} 31. Rxe7+ {[%clk 0:00:15.7]}
31... Kxe7 {[%clk 0:00:13.1]} 32. Rc7+ {[%clk 0:00:15.3]} 32... Kf6 {[%clk
0:00:12]} 33. Ke1 {[%clk 0:00:10.1]} 33... Nh1 {[%clk 0:00:05.2]} 34. Rxa7
{[%clk 0:00:09]} 34... Ng3 {[%clk 0:00:05.6]} 35. b4 {[%clk 0:00:07.1]} 35... h5
{[%clk 0:00:05.9]} 36. Bxh5 {[%clk 0:00:04]} 36... Nxh5 {[%clk 0:00:05.4]} 37.
b5 {[%clk 0:00:04.9]} 37... Ng7 {[%clk 0:00:02.1]} 38. b6 {[%clk 0:00:05.1]}
38... Ne8 {[%clk 0:00:01.9]} 39. b7 {[%clk 0:00:05.5]} 39... g4 {[%clk
0:00:01.2]} 40. b8=Q {[%clk 0:00:05.6]} 1-0

[Event "Early-Titled-Tuesday-Blitz-October-10-2023"]
[Site "Chess.com"]
[Date "2023.10.10"]
[Round "8"]
[White "borocotoajua"]
[Black "kacprekt"]
[Result "0-1"]
[WhiteElo "2568"]
[BlackElo "2490"]
[TimeControl "180+1"]
[EndTime "9:27:30 PDT"]
[Termination "kacprekt won by checkmate"]

1. d4 {[%clk 0:02:59.4]} 1... d5 {[%clk 0:02:59.8]} 2. Nf3 {[%clk 0:02:59.8]}
2... Nf6 {[%clk 0:02:59.2]} 3. c4 {[%clk 0:03:00.3]} 3... e6 {[%clk 0:02:57.3]}
4. g3 {[%clk 0:03:00.4]} 4... Bd6 {[%clk 0:02:56.3]} 5. Bg2 {[%clk 0:03:00.4]}
5... Nc6 {[%clk 0:02:56.2]} 6. O-O {[%clk 0:02:58.9]} 6... O-O {[%clk
0:02:55.4]} 7. Nc3 {[%clk 0:02:50.5]} 7... dxc4 {[%clk 0:02:54]} 8. e4 {[%clk
0:02:45.5]} 8... e5 {[%clk 0:02:54.2]} 9. d5 {[%clk 0:02:46]} 9... Na5 {[%clk
0:02:53.4]} 10. Qe2 {[%clk 0:02:37.5]} 10... b6 {[%clk 0:02:51.5]} 11. Rd1
{[%clk 0:02:21.1]} 11... Ba6 {[%clk 0:02:42.8]} 12. Nh4 {[%clk 0:02:20.3]} 12...
Re8 {[%clk 0:02:35.1]} 13. Nf5 {[%clk 0:02:19]} 13... b5 {[%clk 0:02:27.2]} 14.
Bg5 {[%clk 0:02:08.7]} 14... b4 {[%clk 0:02:23]} 15. Na4 {[%clk 0:01:56.1]}
15... Bb5 {[%clk 0:02:18.5]} 16. b3 {[%clk 0:01:53.2]} 16... Rb8 {[%clk
0:02:16.2]} 17. Qf3 {[%clk 0:01:48.6]} 17... Bxa4 {[%clk 0:02:10.2]} 18. bxa4
{[%clk 0:01:48.9]} 18... c3 {[%clk 0:02:02.1]} 19. h4 {[%clk 0:01:42]} 19... Nc4
{[%clk 0:01:58.4]} 20. h5 {[%clk 0:01:37.2]} 20... Nd2 {[%clk 0:01:58]} 21. Rxd2
{[%clk 0:01:33.9]} 21... cxd2 {[%clk 0:01:58.9]} 22. h6 {[%clk 0:01:34.8]} 22...
g6 {[%clk 0:01:26.6]} 23. Nxd6 {[%clk 0:01:32.9]} 23... Qxd6 {[%clk 0:01:27.5]}
24. Bxf6 {[%clk 0:01:32.1]} 24... c5 {[%clk 0:01:21.2]} 25. Bf1 {[%clk
0:01:24.6]} 25... c4 {[%clk 0:01:14.3]} 26. Bxc4 {[%clk 0:01:15.9]} 26... Rec8
{[%clk 0:01:14.4]} 27. Rd1 {[%clk 0:00:53.1]} 27... Rxc4 {[%clk 0:01:13.3]} 28.
Rxd2 {[%clk 0:00:53.3]} 28... Rc3 {[%clk 0:01:05.7]} 29. Qg4 {[%clk 0:00:44]}
29... Qxf6 {[%clk 0:01:01.2]} 30. d6 {[%clk 0:00:44.3]} 30... Rd8 {[%clk
0:00:54.4]} 31. d7 {[%clk 0:00:42.2]} 31... Qe6 {[%clk 0:00:52]} 32. Qg5 {[%clk
0:00:40.9]} 32... f6 {[%clk 0:00:50.9]} 33. Qh4 {[%clk 0:00:37.2]} 33... Rc7
{[%clk 0:00:48.5]} 34. g4 {[%clk 0:00:29.7]} 34... Rcxd7 {[%clk 0:00:45.4]} 35.
Re2 {[%clk 0:00:29.9]} 35... g5 {[%clk 0:00:43.1]} 36. Qg3 {[%clk 0:00:29.5]}
36... Rd3 {[%clk 0:00:41.9]} 37. Qg2 {[%clk 0:00:27]} 37... Rd1+ {[%clk
0:00:41.4]} 38. Kh2 {[%clk 0:00:27.2]} 38... f5 {[%clk 0:00:34.3]} 39. exf5
{[%clk 0:00:20.9]} 39... Qxh6+ {[%clk 0:00:34]} 40. Kg3 {[%clk 0:00:21.8]} 40...
R8d3+ {[%clk 0:00:33.1]} 41. Re3 {[%clk 0:00:22.2]} 41... Rxe3+ {[%clk
0:00:26.5]} 42. fxe3 {[%clk 0:00:23.1]} 42... Qh4+ {[%clk 0:00:23.7]} 43. Kf3
{[%clk 0:00:23.5]} 43... Qe1 {[%clk 0:00:20.3]} 44. Qc2 {[%clk 0:00:19.3]} 44...
Qh1+ {[%clk 0:00:19.8]} 45. Ke2 {[%clk 0:00:17.9]} 45... Re1+ {[%clk 0:00:17.2]}
46. Kd3 {[%clk 0:00:14.5]} 46... Qd5# {[%clk 0:00:15.9]} 0-1

[Event "Early-Titled-Tuesday-Blitz-October-10-2023"]
[Site "Chess.com"]
[Date "2023.10.10"]
[Round "8"]
[White "queen_iryna"]
[Black "kingapolak"]
[Result "1-0"]
[WhiteElo "2331"]
[BlackElo "2045"]
[TimeControl "180+1"]
[EndTime "9:27:30 PDT"]
[Termination "queen_iryna won on time"]

1. e4 {[%clk 0:02:59.7]} 1... c5 {[%clk 0:02:59.2]} 2. Nf3 {[%clk 0:02:59.4]}
2... Nc6 {[%clk 0:02:59.1]} 3. Bb5 {[%clk 0:02:59.4]} 3... g6 {[%clk 0:02:45.3]}
4. Bxc6 {[%clk 0:02:58.9]} 4... dxc6 {[%clk 0:02:42.5]} 5. d3 {[%clk 0:02:58.3]}
5... Bg7 {[%clk 0:02:42.3]} 6. Nc3 {[%clk 0:02:59.2]} 6... e5 {[%clk 0:02:41.7]}
7. Be3 {[%clk 0:02:58.7]} 7... b6 {[%clk 0:02:41.2]} 8. Qd2 {[%clk 0:02:58.2]}
8... h6 {[%clk 0:02:25.4]} 9. h3 {[%clk 0:02:57.5]} 9... Be6 {[%clk 0:02:23.5]}
10. O-O {[%clk 0:02:52.9]} 10... Qd7 {[%clk 0:02:15.6]} 11. Nh2 {[%clk
0:02:47.7]} 11... g5 {[%clk 0:02:04.7]} 12. a3 {[%clk 0:02:44.6]} 12... Ne7
{[%clk 0:01:59.9]} 13. b4 {[%clk 0:02:42.1]} 13... cxb4 {[%clk 0:01:58.3]} 14.
axb4 {[%clk 0:02:42.1]} 14... O-O-O {[%clk 0:01:44.1]} 15. Ra6 {[%clk
0:02:37.2]} 15... Kb7 {[%clk 0:01:32.9]} 16. Rfa1 {[%clk 0:02:35.7]} 16... Ra8
{[%clk 0:01:32.6]} 17. Qc1 {[%clk 0:02:28.4]} 17... Nc8 {[%clk 0:01:23.2]} 18.
Qa3 {[%clk 0:02:22.3]} 18... Kc7 {[%clk 0:01:19.5]} 19. Nf3 {[%clk 0:02:05.7]}
19... g4 {[%clk 0:01:12.6]} 20. hxg4 {[%clk 0:02:04.5]} 20... Bxg4 {[%clk
0:01:13.5]} 21. Nd2 {[%clk 0:01:57.6]} 21... Rb8 {[%clk 0:00:43.1]} 22. Qb2
{[%clk 0:01:38]} 22... Rg8 {[%clk 0:00:41.1]} 23. R1a2 {[%clk 0:01:35.6]} 23...
Bf6 {[%clk 0:00:38.8]} 24. Qa1 {[%clk 0:01:34]} 24... Bh3 {[%clk 0:00:32.1]} 25.
g3 {[%clk 0:01:30.6]} 25... Kd6 {[%clk 0:00:27.4]} 26. Nc4+ {[%clk 0:01:24.7]}
26... Ke7 {[%clk 0:00:27.5]} 27. b5 {[%clk 0:01:08.2]} 27... Be6 {[%clk
0:00:20.3]} 28. bxc6 {[%clk 0:01:04.7]} 28... Qxc6 {[%clk 0:00:19.4]} 29. Nd5+
{[%clk 0:00:54.8]} 29... Bxd5 {[%clk 0:00:18.7]} 30. exd5 {[%clk 0:00:55.7]}
30... Qxd5 {[%clk 0:00:17.8]} 31. Rxa7+ {[%clk 0:00:51.8]} 31... Nxa7 {[%clk
0:00:17]} 32. Rxa7+ {[%clk 0:00:52.7]} 32... Rb7 {[%clk 0:00:17.5]} 33. Bxb6
{[%clk 0:00:48.7]} 33... Rb8 {[%clk 0:00:11.3]} 34. Rxb7+ {[%clk 0:00:46.3]}
34... Rxb7 {[%clk 0:00:11.3]} 35. Qa3+ {[%clk 0:00:43.4]} 35... Ke6 {[%clk
0:00:10.5]} 36. Qf8 {[%clk 0:00:32]} 36... Bg5 {[%clk 0:00:07.1]} 37. Qc8+
{[%clk 0:00:30.6]} 37... Rd7 {[%clk 0:00:06]} 38. Qe8+ {[%clk 0:00:27.4]} 38...
Kf6 {[%clk 0:00:03.4]} 39. Qh8+ {[%clk 0:00:26.5]} 39... Ke6 {[%clk 0:00:01.8]}
40. Qe8+ {[%clk 0:00:21]} 40... Kf6 {[%clk 0:00:02.1]} 41. Qb8 {[%clk
0:00:17.3]} 41... Qe6 {[%clk 0:00:01.4]} 42. Bc7 {[%clk 0:00:15.7]} 1-0

[Event "Early-Titled-Tuesday-Blitz-October-10-2023"]
[Site "Chess.com"]
[Date "2023.10.10"]
[Round "8"]
[White "lilleper1"]
[Black "MikaelyanArman"]
[Result "0-1"]
[WhiteElo "2882"]
[BlackElo "2852"]
[TimeControl "180+1"]
[EndTime "9:27:31 PDT"]
[Termination "MikaelyanArman won by resignation"]

1. d4 {[%clk 0:03:00.9]} 1... d5 {[%clk 0:02:59.5]} 2. c4 {[%clk 0:03:00.3]}
2... c6 {[%clk 0:03:00]} 3. Nf3 {[%clk 0:03:00.1]} 3... Nf6 {[%clk 0:03:00.2]}
4. g3 {[%clk 0:02:59.8]} 4... g6 {[%clk 0:02:56.3]} 5. Bg2 {[%clk 0:02:58.6]}
5... Bg7 {[%clk 0:02:56.8]} 6. O-O {[%clk 0:02:59]} 6... O-O {[%clk 0:02:57.2]}
7. Qb3 {[%clk 0:02:59.1]} 7... a5 {[%clk 0:02:56.3]} 8. Rd1 {[%clk 0:02:39]}
8... a4 {[%clk 0:02:50.1]} 9. Qc3 {[%clk 0:02:33.3]} 9... Ne4 {[%clk 0:02:49.3]}
10. Qe1 {[%clk 0:02:31.3]} 10... dxc4 {[%clk 0:02:41.5]} 11. Ne5 {[%clk
0:02:28.7]} 11... Nd6 {[%clk 0:02:41.6]} 12. Na3 {[%clk 0:02:26.1]} 12... Be6
{[%clk 0:02:34.9]} 13. Bf4 {[%clk 0:02:22.7]} 13... Qb6 {[%clk 0:02:16.3]} 14.
Qc3 {[%clk 0:02:16.2]} 14... Qa6 {[%clk 0:01:57.3]} 15. e4 {[%clk 0:02:10.3]}
15... Nd7 {[%clk 0:01:49.7]} 16. Nxd7 {[%clk 0:02:06.1]} 16... Bxd7 {[%clk
0:01:50.6]} 17. Bxd6 {[%clk 0:02:05.7]} 17... exd6 {[%clk 0:01:51.5]} 18. Nxc4
{[%clk 0:02:03.8]} 18... c5 {[%clk 0:01:25.1]} 19. e5 {[%clk 0:02:04.1]} 19...
dxe5 {[%clk 0:00:56]} 20. dxe5 {[%clk 0:01:56.8]} 20... Be6 {[%clk 0:00:44.4]}
21. Nd6 {[%clk 0:01:52.4]} 21... Qb6 {[%clk 0:00:37.2]} 22. Rd2 {[%clk
0:01:38.4]} 22... Rad8 {[%clk 0:00:35.8]} 23. Rad1 {[%clk 0:01:33.7]} 23... Bxa2
{[%clk 0:00:35.8]} 24. Nxb7 {[%clk 0:01:25.7]} 24... Rxd2 {[%clk 0:00:34.1]} 25.
Rxd2 {[%clk 0:01:26.6]} 25... Qb4 {[%clk 0:00:20]} 26. Nxc5 {[%clk 0:01:09.6]}
26... Qxc3 {[%clk 0:00:20.1]} 27. bxc3 {[%clk 0:01:10.5]} 27... Bb3 {[%clk
0:00:20.7]} 28. f4 {[%clk 0:01:06.1]} 28... Rc8 {[%clk 0:00:20.6]} 29. Nxb3
{[%clk 0:00:23.6]} 29... axb3 {[%clk 0:00:21.5]} 30. Be4 {[%clk 0:00:19.9]}
30... Rxc3 {[%clk 0:00:20.9]} 31. Rd8+ {[%clk 0:00:20]} 31... Bf8 {[%clk
0:00:21.4]} 32. Rb8 {[%clk 0:00:20.9]} 32... Kg7 {[%clk 0:00:21.4]} 33. Bd5
{[%clk 0:00:20.9]} 33... Rc1+ {[%clk 0:00:17.9]} 34. Kg2 {[%clk 0:00:21.2]}
34... Rc2+ {[%clk 0:00:18.6]} 35. Kf3 {[%clk 0:00:21]} 35... b2 {[%clk 0:00:19]}
36. Rb7 {[%clk 0:00:20.4]} 36... Be7 {[%clk 0:00:19.6]} 37. Be4 {[%clk
0:00:19.4]} 37... Rc3+ {[%clk 0:00:17.1]} 38. Kg2 {[%clk 0:00:17.3]} 38... Ba3
{[%clk 0:00:17]} 39. h4 {[%clk 0:00:16.5]} 39... h5 {[%clk 0:00:16.4]} 40. f5
{[%clk 0:00:15.9]} 40... gxf5 {[%clk 0:00:15.5]} 41. Bxf5 {[%clk 0:00:16.5]}
41... Kf8 {[%clk 0:00:13.2]} 42. g4 {[%clk 0:00:15.3]} 42... hxg4 {[%clk
0:00:12.2]} 43. Bxg4 {[%clk 0:00:16.2]} 43... Rc4 {[%clk 0:00:12.7]} 44. Bf5
{[%clk 0:00:16.2]} 44... Rf4 {[%clk 0:00:12]} 45. Bc2 {[%clk 0:00:15.4]} 45...
Rxh4 {[%clk 0:00:12.3]} 46. Rb3 {[%clk 0:00:14.7]} 46... Rc4 {[%clk 0:00:08.1]}
47. Bd3 {[%clk 0:00:13.6]} 47... Rd4 {[%clk 0:00:08]} 48. Bc2 {[%clk 0:00:13]}
48... Rd2+ {[%clk 0:00:08.2]} 0-1

[Event "Early-Titled-Tuesday-Blitz-October-10-2023"]
[Site "Chess.com"]
[Date "2023.10.10"]
[Round "8"]
[White "Rozhkov_V"]
[Black "LeoLV10"]
[Result "0-1"]
[WhiteElo "2442"]
[BlackElo "2567"]
[TimeControl "180+1"]
[EndTime "9:27:32 PDT"]
[Termination "LeoLV10 won by checkmate"]

1. e4 {[%clk 0:03:00.9]} 1... c6 {[%clk 0:02:55.2]} 2. d3 {[%clk 0:03:00.9]}
2... d5 {[%clk 0:02:56.1]} 3. Nd2 {[%clk 0:03:01.3]} 3... dxe4 {[%clk
0:02:54.9]} 4. dxe4 {[%clk 0:03:02.2]} 4... g6 {[%clk 0:02:54.4]} 5. Ngf3 {[%clk
0:03:02]} 5... Bg7 {[%clk 0:02:54.7]} 6. Bc4 {[%clk 0:03:02.4]} 6... Nf6 {[%clk
0:02:49.7]} 7. O-O {[%clk 0:02:57.3]} 7... O-O {[%clk 0:02:49.5]} 8. a4 {[%clk
0:02:54.9]} 8... Nbd7 {[%clk 0:02:41]} 9. Qe2 {[%clk 0:02:52.3]} 9... e5 {[%clk
0:02:28.3]} 10. Bb3 {[%clk 0:02:45.9]} 10... Qe7 {[%clk 0:02:27.3]} 11. Nc4
{[%clk 0:02:45.2]} 11... Re8 {[%clk 0:02:22]} 12. Be3 {[%clk 0:02:40.6]} 12...
Nxe4 {[%clk 0:02:01.2]} 13. Rfd1 {[%clk 0:02:33.9]} 13... Nf8 {[%clk 0:01:51.7]}
14. c3 {[%clk 0:02:13.9]} 14... Nc5 {[%clk 0:01:44.1]} 15. Bc2 {[%clk
0:02:12.8]} 15... Bg4 {[%clk 0:01:42.1]} 16. h3 {[%clk 0:02:11.2]} 16... Bxf3
{[%clk 0:01:41.6]} 17. Qxf3 {[%clk 0:02:12.1]} 17... Nce6 {[%clk 0:01:37.4]} 18.
a5 {[%clk 0:01:56.6]} 18... f5 {[%clk 0:01:23]} 19. a6 {[%clk 0:01:46.4]} 19...
e4 {[%clk 0:01:22.6]} 20. Qe2 {[%clk 0:01:44.2]} 20... b6 {[%clk 0:01:22.3]} 21.
Bb3 {[%clk 0:01:13.1]} 21... Kh8 {[%clk 0:01:20.5]} 22. f3 {[%clk 0:00:56.2]}
22... f4 {[%clk 0:01:14.3]} 23. Bd4 {[%clk 0:00:56.7]} 23... Nxd4 {[%clk
0:01:13.1]} 24. cxd4 {[%clk 0:00:57.6]} 24... Rad8 {[%clk 0:01:03.5]} 25. fxe4
{[%clk 0:00:32.8]} 25... Rxd4 {[%clk 0:00:49.6]} 26. e5 {[%clk 0:00:19.2]} 26...
Qc5 {[%clk 0:00:33]} 27. Kh1 {[%clk 0:00:15]} 27... Bxe5 {[%clk 0:00:20.6]} 28.
Re1 {[%clk 0:00:11.5]} 28... Nd7 {[%clk 0:00:18.4]} 29. Qg4 {[%clk 0:00:08.7]}
29... Qf8 {[%clk 0:00:15.2]} 30. Rad1 {[%clk 0:00:05.6]} 30... Rxd1 {[%clk
0:00:14.8]} 31. Rxd1 {[%clk 0:00:06.5]} 31... Nf6 {[%clk 0:00:14.8]} 32. Qf3
{[%clk 0:00:06.6]} 32... Bc7 {[%clk 0:00:12.7]} 33. Qxc6 {[%clk 0:00:06.4]}
33... Bb8 {[%clk 0:00:11.3]} 34. Qf3 {[%clk 0:00:04.6]} 34... Nh5 {[%clk
0:00:10.2]} 35. Bc2 {[%clk 0:00:02.9]} 35... Ng3+ {[%clk 0:00:10]} 36. Kh2
{[%clk 0:00:02.8]} 36... Kg7 {[%clk 0:00:08.3]} 37. Qc3+ {[%clk 0:00:01.8]}
37... Kh6 {[%clk 0:00:05.9]} 38. Rd7 {[%clk 0:00:01.9]} 38... f3 {[%clk
0:00:05.4]} 39. Kg1 {[%clk 0:00:01.2]} 39... f2+ {[%clk 0:00:05.5]} 40. Kh2
{[%clk 0:00:01.7]} 40... Ne2+ {[%clk 0:00:05.3]} 41. Kh1 {[%clk 0:00:01.4]}
41... f1=Q# {[%clk 0:00:05.3]} 0-1

[Event "Early-Titled-Tuesday-Blitz-October-10-2023"]
[Site "Chess.com"]
[Date "2023.10.10"]
[Round "8"]
[White "GothamChess"]
[Black "sergoy"]
[Result "1-0"]
[WhiteElo "2760"]
[BlackElo "2987"]
[TimeControl "180+1"]
[EndTime "9:27:35 PDT"]
[Termination "GothamChess won on time"]

1. e4 {[%clk 0:03:00.9]} 1... c5 {[%clk 0:02:56.9]} 2. Nc3 {[%clk 0:03:00.1]}
2... e6 {[%clk 0:02:55.3]} 3. d4 {[%clk 0:02:59.9]} 3... cxd4 {[%clk 0:02:53.5]}
4. Qxd4 {[%clk 0:03:00.8]} 4... Nc6 {[%clk 0:02:53.8]} 5. Qd3 {[%clk 0:03:01.1]}
5... Nf6 {[%clk 0:02:53]} 6. Bf4 {[%clk 0:03:01]} 6... d5 {[%clk 0:02:37.3]} 7.
O-O-O {[%clk 0:03:00]} 7... d4 {[%clk 0:02:32.1]} 8. Nb5 {[%clk 0:02:59.3]} 8...
e5 {[%clk 0:02:31.6]} 9. Bxe5 {[%clk 0:02:59.4]} 9... Nxe5 {[%clk 0:02:24.3]}
10. Qg3 {[%clk 0:02:59.9]} 10... Qe7 {[%clk 0:02:06.6]} 11. Rxd4 {[%clk
0:02:55.5]} 11... Bg4 {[%clk 0:01:14.9]} 12. Nd6+ {[%clk 0:02:39.7]} 12... Qxd6
{[%clk 0:01:14.5]} 13. Rxd6 {[%clk 0:02:39.9]} 13... Bxd6 {[%clk 0:01:13.8]} 14.
Bb5+ {[%clk 0:02:31.5]} 14... Kf8 {[%clk 0:01:06.7]} 15. f4 {[%clk 0:01:42.7]}
15... Nh5 {[%clk 0:01:03.9]} 16. Qb3 {[%clk 0:01:20.2]} 16... Nxf4 {[%clk
0:00:59.8]} 17. Nf3 {[%clk 0:01:19.5]} 17... Be6 {[%clk 0:00:50.9]} 18. Qc3
{[%clk 0:01:08.8]} 18... Nxf3 {[%clk 0:00:38.5]} 19. Qxf3 {[%clk 0:01:06.6]}
19... Ng6 {[%clk 0:00:28.3]} 20. g3 {[%clk 0:01:02.6]} 20... Ke7 {[%clk
0:00:28.2]} 21. Ba4 {[%clk 0:00:58]} 21... Ne5 {[%clk 0:00:26.2]} 22. Qe3 {[%clk
0:00:55.3]} 22... Nc4 {[%clk 0:00:25]} 23. Qg5+ {[%clk 0:00:54.9]} 23... Kf8
{[%clk 0:00:18.1]} 24. Bb3 {[%clk 0:00:54.1]} 24... Rc8 {[%clk 0:00:14.3]} 25.
Rd1 {[%clk 0:00:52]} 25... Be7 {[%clk 0:00:14.5]} 26. Qb5 {[%clk 0:00:47.4]}
26... b6 {[%clk 0:00:14.8]} 27. Qa6 {[%clk 0:00:45.7]} 27... g6 {[%clk
0:00:11.7]} 28. Rd4 {[%clk 0:00:37.3]} 28... Bg5+ {[%clk 0:00:09.8]} 29. Kb1
{[%clk 0:00:35.5]} 29... Nd2+ {[%clk 0:00:05.4]} 30. Rxd2 {[%clk 0:00:34]} 30...
Bxd2 {[%clk 0:00:06]} 31. Bxe6 {[%clk 0:00:33.5]} 31... Rd8 {[%clk 0:00:06.6]}
32. Bd5 {[%clk 0:00:32.3]} 32... Bg5 {[%clk 0:00:06.7]} 33. Qxa7 {[%clk
0:00:31.4]} 33... Be7 {[%clk 0:00:07.3]} 34. a4 {[%clk 0:00:29.1]} 34... h5
{[%clk 0:00:07.8]} 35. h4 {[%clk 0:00:22.6]} 35... Rd6 {[%clk 0:00:04.6]} 36.
Qc7 {[%clk 0:00:19.1]} 36... Rd8 {[%clk 0:00:03.1]} 37. Ka2 {[%clk 0:00:18.4]}
37... Rd6 {[%clk 0:00:03.1]} 38. c3 {[%clk 0:00:18.3]} 38... Rd8 {[%clk
0:00:03.3]} 39. b4 {[%clk 0:00:18.6]} 39... Rd6 {[%clk 0:00:03.4]} 40. Kb3
{[%clk 0:00:19]} 40... Rd8 {[%clk 0:00:03.5]} 41. Qxb6 {[%clk 0:00:18.3]} 41...
Kg7 {[%clk 0:00:02.3]} 42. Qb7 {[%clk 0:00:17.6]} 42... Rhe8 {[%clk 0:00:02.7]}
43. a5 {[%clk 0:00:16]} 43... Rb8 {[%clk 0:00:03.1]} 44. Qc7 {[%clk 0:00:15.9]}
44... Rbc8 {[%clk 0:00:03.7]} 45. Qd7 {[%clk 0:00:15]} 45... Rcd8 {[%clk
0:00:03.6]} 46. Qa7 {[%clk 0:00:12.2]} 46... Kf8 {[%clk 0:00:01.6]} 47. a6
{[%clk 0:00:12.3]} 1-0

[Event "Early-Titled-Tuesday-Blitz-October-10-2023"]
[Site "Chess.com"]
[Date "2023.10.10"]
[Round "8"]
[White "abelmat"]
[Black "carloseduar100"]
[Result "0-1"]
[WhiteElo "1957"]
[BlackElo "2325"]
[TimeControl "180+1"]
[EndTime "9:27:36 PDT"]
[Termination "carloseduar100 won on time"]

1. d4 {[%clk 0:03:00.9]} 1... d5 {[%clk 0:03:00]} 2. c4 {[%clk 0:03:00.8]} 2...
e5 {[%clk 0:03:00.6]} 3. dxe5 {[%clk 0:02:54.5]} 3... d4 {[%clk 0:03:01.5]} 4.
Nf3 {[%clk 0:02:53.6]} 4... Nc6 {[%clk 0:03:00.7]} 5. a3 {[%clk 0:02:51]} 5...
Nge7 {[%clk 0:03:00.3]} 6. Bg5 {[%clk 0:02:46.5]} 6... Bg4 {[%clk 0:02:59.8]} 7.
Nbd2 {[%clk 0:02:40.8]} 7... Qd7 {[%clk 0:02:59]} 8. h3 {[%clk 0:02:33.8]} 8...
Bh5 {[%clk 0:02:58.7]} 9. g4 {[%clk 0:02:32.2]} 9... Bg6 {[%clk 0:02:58.5]} 10.
Bg2 {[%clk 0:02:31.5]} 10... h5 {[%clk 0:02:54.4]} 11. gxh5 {[%clk 0:01:54.7]}
11... Rxh5 {[%clk 0:02:53.6]} 12. Qb3 {[%clk 0:01:50.9]} 12... Nf5 {[%clk
0:02:41.9]} 13. h4 {[%clk 0:01:29.2]} 13... Be7 {[%clk 0:02:31.4]} 14. Bh3
{[%clk 0:01:25.5]} 14... Bxg5 {[%clk 0:02:28.8]} 15. Nxg5 {[%clk 0:01:14.1]}
15... Rxh4 {[%clk 0:02:24.3]} 16. O-O-O {[%clk 0:00:58.1]} 16... O-O-O {[%clk
0:02:16.5]} 17. Ndf3 {[%clk 0:00:36.8]} 17... Rh5 {[%clk 0:02:01.5]} 18. e4
{[%clk 0:00:18.6]} 18... Rxh3 {[%clk 0:01:44]} 19. Rxh3 {[%clk 0:00:15.3]} 19...
Nh6 {[%clk 0:01:42.5]} 20. Rhh1 {[%clk 0:00:13.3]} 20... Ng4 {[%clk 0:01:40.4]}
21. Rhf1 {[%clk 0:00:10.3]} 21... Ngxe5 {[%clk 0:01:38.2]} 22. Nxe5 {[%clk
0:00:10.1]} 22... Nxe5 {[%clk 0:01:38.6]} 23. f4 {[%clk 0:00:10]} 23... Nc6
{[%clk 0:01:33.2]} 24. f5 {[%clk 0:00:09.7]} 24... Bh5 {[%clk 0:01:33.6]} 25.
Rh1 {[%clk 0:00:09.7]} 25... Bxd1 {[%clk 0:01:33]} 26. Rxd1 {[%clk 0:00:09.4]}
26... Ne5 {[%clk 0:01:28.2]} 27. c5 {[%clk 0:00:09]} 27... Qc6 {[%clk
0:01:25.1]} 28. Kb1 {[%clk 0:00:08.8]} 28... d3 {[%clk 0:00:41.2]} 29. Nxf7
{[%clk 0:00:07.6]} 29... Nxf7 {[%clk 0:00:40.8]} 30. Qxf7 {[%clk 0:00:07.8]}
30... Qxe4 {[%clk 0:00:41.5]} 31. Qe6+ {[%clk 0:00:06.4]} 31... Qxe6 {[%clk
0:00:41.4]} 32. fxe6 {[%clk 0:00:07.3]} 32... Re8 {[%clk 0:00:40]} 33. Re1
{[%clk 0:00:06.5]} 33... d2 {[%clk 0:00:38.6]} 34. Rd1 {[%clk 0:00:06.3]} 34...
Rxe6 {[%clk 0:00:38.9]} 35. Rxd2 {[%clk 0:00:06.2]} 35... g5 {[%clk 0:00:39.1]}
36. Rg2 {[%clk 0:00:06.2]} 36... Rg6 {[%clk 0:00:39.2]} 37. b4 {[%clk
0:00:05.9]} 37... g4 {[%clk 0:00:39.3]} 38. Kc2 {[%clk 0:00:05.9]} 38... g3
{[%clk 0:00:39.9]} 39. Kc3 {[%clk 0:00:04.7]} 39... Kd7 {[%clk 0:00:40.7]} 40.
Kd4 {[%clk 0:00:05.1]} 40... Kc6 {[%clk 0:00:41.2]} 41. Kc4 {[%clk 0:00:03.7]}
41... a6 {[%clk 0:00:40.7]} 42. a4 {[%clk 0:00:03.3]} 42... Rg4+ {[%clk
0:00:40.7]} 43. Kb3 {[%clk 0:00:03.1]} 43... Kd5 {[%clk 0:00:40.9]} 44. Rd2+
{[%clk 0:00:02.7]} 44... Ke4 {[%clk 0:00:41.3]} 0-1